[Event "Championnat d'Europe Rapide"]
[Date "2024.12.08"]
[White "Pancevski, Filip"]
[Black "Kuzubov, Yuriy"]
[WhiteElo "2420"]
[BlackElo "2595"]
[Round "10.28"]
[Result "0-1"]
[TimeControl "900+10"]

1. c4 {[%emt 00:00:02] [%clk 00:15:18]} e5 {[%emt 00:00:03] [%clk 00:15:18]} 2.
g3 {[%clk 00:15:27]} Nc6 {[%emt 00:00:09] [%clk 00:15:19]} 3. Nc3 {[%emt
00:00:02] [%clk 00:15:35]} f5 {[%emt 00:00:06] [%clk 00:15:23]} 4. Bg2 {[%emt
00:00:04] [%clk 00:15:41]} Nf6 {[%emt 00:00:04] [%clk 00:15:29]} 5. e3 {[%emt
00:00:03] [%clk 00:15:48]} Bb4 {[%emt 00:02:59] [%clk 00:12:40]} 6. Nge2 {[%emt
00:00:17] [%clk 00:15:41]} O-O {[%emt 00:00:13] [%clk 00:12:37]} 7. O-O {[%emt
00:00:05] [%clk 00:15:46]} d6 {[%emt 00:00:17] [%clk 00:12:31]} 8. Nd5 {[%emt
00:00:31] [%clk 00:15:25]} Nxd5 {[%emt 00:01:13] [%clk 00:11:28]} 9. cxd5 {[%emt
00:00:02] [%clk 00:15:33]} Ne7 {[%emt 00:00:02] [%clk 00:11:36]} 10. a3 {[%emt
00:00:09] [%clk 00:15:34]} Ba5 {[%emt 00:00:04] [%clk 00:11:41]} 11. b4 {[%emt
00:00:06] [%clk 00:15:38]} Bb6 {[%emt 00:00:02] [%clk 00:11:49]} 12. Bb2 {[%emt
00:00:02] [%clk 00:15:46]} Bd7 {[%emt 00:00:30] [%clk 00:11:29]} 13. Qb3 {[%emt
00:00:27] [%clk 00:15:29]} Kh8 {[%emt 00:00:47] [%clk 00:10:51]} 14. f4 {[%emt
00:01:09] [%clk 00:14:31]} e4 {[%emt 00:01:30] [%clk 00:09:31]} 15. a4 {[%emt
00:01:05] [%clk 00:13:36]} a5 {[%emt 00:00:36] [%clk 00:09:05]} 16. b5 {[%emt
00:00:34] [%clk 00:13:12]} Qe8 {[%emt 00:04:18] [%clk 00:04:57]} 17. g4 {[%emt
00:02:18] [%clk 00:11:05]} Qf7 {[%emt 00:00:41] [%clk 00:04:25]} 18. Nc3 {[%emt
00:04:26] [%clk 00:06:49]} fxg4 {[%emt 00:00:47] [%clk 00:03:48]} 19. Bxe4
{[%emt 00:00:52] [%clk 00:06:06]} Nf5 {[%emt 00:00:25] [%clk 00:03:34]} 20. Rae1
{[%emt 00:00:58] [%clk 00:05:17]} Rae8 {[%emt 00:00:08] [%clk 00:03:36]} 21. Qc2
{[%emt 00:00:32] [%clk 00:04:55]} Qh5 {[%emt 00:01:59] [%clk 00:01:47]} 22. Qd3
{[%emt 00:00:46] [%clk 00:04:20]} Nh4 {[%emt 00:00:20] [%clk 00:01:36]} 23. Re2
{[%emt 00:02:25] [%clk 00:02:05]} Nf3+ {[%emt 00:00:32] [%clk 00:01:15]} 24. Kh1
{[%emt 00:00:33] [%clk 00:01:42]} Bf5 {[%emt 00:00:46] [%clk 00:00:39]} 25. Rg2
{[%emt 00:01:19] [%clk 00:00:33]} Rxe4 {[%emt 00:00:21] [%clk 00:00:28]} 26.
Nxe4 {[%emt 00:00:06] [%clk 00:00:37]} Qg6 {[%emt 00:00:03] [%clk 00:00:35]} 27.
Qc3 {[%emt 00:00:27] [%clk 00:00:20]} Bxe4 {[%emt 00:00:04] [%clk 00:00:40]} 28.
d3 {[%emt 00:00:01] [%clk 00:00:29]} Bxd3 {[%emt 00:00:25] [%clk 00:00:26]} 29.
Rxf3 {[%emt 00:00:02] [%clk 00:00:37]} Be4 {[%emt 00:00:03] [%clk 00:00:33]} 30.
Rfg3 {[%emt 00:00:08] [%clk 00:00:39]} Bxd5 {[%emt 00:00:19] [%clk 00:00:25]}
31. h3 {[%emt 00:00:13] [%clk 00:00:35]} Qf6 {[%emt 00:00:15] [%clk 00:00:19]}
32. Qc2 {[%emt 00:00:21] [%clk 00:00:25]} Qe6 {[%emt 00:00:13] [%clk 00:00:16]}
33. Rxg4 {[%emt 00:00:09] [%clk 00:00:25]} Bxg2+ {[%emt 00:00:13] [%clk
00:00:14]} 34. Kxg2 {[%emt 00:00:02] [%clk 00:00:34]} Rf7 {[%emt 00:00:04] [%clk
00:00:19]} 35. e4 {[%emt 00:00:19] [%clk 00:00:25]} Kg8 {[%emt 00:00:13] [%clk
00:00:17]} 36. f5 {[%emt 00:00:10] [%clk 00:00:25]} Qe8 {[%emt 00:00:11] [%clk
00:00:15]} 37. Qc3 {[%emt 00:00:17] [%clk 00:00:18]} Kf8 {[%emt 00:00:12] [%clk
00:00:13]} 38. Kf3 {[%emt 00:00:07] [%clk 00:00:21]} Qe7 {[%emt 00:00:06] [%clk
00:00:17]} 39. Qc4 {[%emt 00:00:08] [%clk 00:00:23]} Ke8 {[%emt 00:00:11] [%clk
00:00:16]} 40. Qd5 {[%emt 00:00:03] [%clk 00:00:31]} g6 {[%emt 00:00:10] [%clk
00:00:16]} 41. Qxb7 {[%emt 00:00:05] [%clk 00:00:36]} Rxf5+ {[%emt 00:00:10]
[%clk 00:00:16]} 42. exf5 {[%emt 00:00:32] [%clk 00:00:14]} Qe3+ {[%emt
00:00:02] [%clk 00:00:24]} 43. Kg2 {[%clk 00:00:23]} Qg1+ {[%emt 00:00:02] [%clk
00:00:31]} 44. Kf3 {[%emt 00:00:02] [%clk 00:00:32]} Qf2+ {[%emt 00:00:24] [%clk
00:00:17]} 45. Ke4 {[%emt 00:00:02] [%clk 00:00:41]} Qxf5# {[%emt 00:00:09]
[%clk 00:00:18]} 0-1

[Site "Europe Echecs"]

[Event "Championnat d'Europe Rapide"]
[Date "2024.12.08"]
[White "Pantsulaia, Levan"]
[Black "Jacimovic, Dragoljub"]
[WhiteElo "2522"]
[BlackElo "2358"]
[Round "10.29"]
[Result "0-1"]
[TimeControl "900+10"]

1. Nf3 {[%emt 00:00:01] [%clk 00:15:17]} Nf6 {[%emt 00:00:09] [%clk 00:15:12]}
2. g3 {[%emt 00:00:04] [%clk 00:15:24]} g6 {[%emt 00:00:05] [%clk 00:15:16]} 3.
b3 {[%emt 00:00:03] [%clk 00:15:32]} Bg7 {[%emt 00:00:06] [%clk 00:15:20]} 4.
Bb2 {[%emt 00:00:03] [%clk 00:15:39]} c5 {[%emt 00:00:06] [%clk 00:15:23]} 5. c4
{[%emt 00:00:07] [%clk 00:15:43]} d6 {[%emt 00:00:10] [%clk 00:15:23]} 6. Bg2
{[%emt 00:00:03] [%clk 00:15:49]} Nc6 {[%emt 00:00:09] [%clk 00:15:24]} 7. O-O
{[%emt 00:00:03] [%clk 00:15:56]} O-O {[%emt 00:00:06] [%clk 00:15:28]} 8. d4
{[%emt 00:00:33] [%clk 00:15:34]} Ne4 {[%emt 00:01:42] [%clk 00:13:55]} 9. e3
{[%emt 00:00:23] [%clk 00:15:21]} Qa5 {[%emt 00:00:45] [%clk 00:13:20]} 10. Qc1
{[%emt 00:01:36] [%clk 00:13:55]} cxd4 {[%emt 00:01:19] [%clk 00:12:11]} 11.
Nxd4 {[%emt 00:00:02] [%clk 00:14:03]} Nxd4 {[%emt 00:01:42] [%clk 00:10:39]}
12. Bxd4 {[%emt 00:00:04] [%clk 00:14:09]} Bxd4 {[%emt 00:00:54] [%clk
00:09:55]} 13. exd4 {[%emt 00:00:03] [%clk 00:14:16]} Nf6 {[%emt 00:00:02] [%clk
00:10:03]} 14. Re1 {[%emt 00:00:56] [%clk 00:13:31]} Re8 {[%emt 00:00:16] [%clk
00:09:56]} 15. Nc3 {[%emt 00:00:16] [%clk 00:13:26]} Rb8 {[%emt 00:00:30] [%clk
00:09:35]} 16. Qb2 {[%emt 00:00:41] [%clk 00:12:56]} Qh5 {[%emt 00:00:54] [%clk
00:08:51]} 17. Nb5 {[%emt 00:00:51] [%clk 00:12:15]} Bd7 {[%emt 00:01:11] [%clk
00:07:49]} 18. Nc3 {[%emt 00:01:05] [%clk 00:11:21]} a6 {[%emt 00:00:20] [%clk
00:07:39]} 19. a4 {[%emt 00:00:17] [%clk 00:11:13]} Ng4 {[%emt 00:01:51] [%clk
00:05:58]} 20. h3 {[%emt 00:00:11] [%clk 00:11:13]} Nf6 {[%emt 00:00:02] [%clk
00:06:06]} 21. h4 {[%emt 00:00:24] [%clk 00:10:58]} Bc6 {[%emt 00:00:58] [%clk
00:05:19]} 22. d5 {[%emt 00:00:35] [%clk 00:10:33]} Bd7 {[%emt 00:00:01] [%clk
00:05:26]} 23. a5 {[%emt 00:00:04] [%clk 00:10:40]} b6 {[%emt 00:00:16] [%clk
00:05:20]} 24. Ne2 {[%emt 00:01:29] [%clk 00:09:21]} Ng4 {[%emt 00:02:04] [%clk
00:03:26]} 25. Nf4 {[%emt 00:01:56] [%clk 00:07:35]} Qh6 {[%emt 00:00:05] [%clk
00:03:31]} 26. Qc3 {[%emt 00:03:16] [%clk 00:04:30]} Qg7 {[%emt 00:00:15] [%clk
00:03:26]} 27. Qc2 {[%emt 00:01:16] [%clk 00:03:24]} Ne5 {[%emt 00:00:39] [%clk
00:02:57]} 28. axb6 {[%emt 00:00:55] [%clk 00:02:39]} Rxb6 {[%emt 00:00:02]
[%clk 00:03:04]} 29. c5 {[%emt 00:00:02] [%clk 00:02:47]} dxc5 {[%emt 00:00:20]
[%clk 00:02:54]} 30. Qxc5 {[%emt 00:00:02] [%clk 00:02:55]} Qf6 {[%emt 00:00:08]
[%clk 00:02:56]} 31. d6 {[%emt 00:01:04] [%clk 00:02:01]} Rb5 {[%emt 00:00:06]
[%clk 00:03:00]} 32. Qa7 {[%emt 00:00:22] [%clk 00:01:49]} exd6 {[%emt 00:00:49]
[%clk 00:02:20]} 33. Nd5 {[%emt 00:00:56] [%clk 00:01:03]} Nf3+ {[%emt 00:01:19]
[%clk 00:01:11]} 34. Bxf3 {[%emt 00:00:11] [%clk 00:01:02]} Qxf3 {[%emt
00:00:19] [%clk 00:01:02]} 35. Rxe8+ {[%emt 00:00:55] [%clk 00:00:17]} Bxe8
{[%emt 00:00:01] [%clk 00:01:10]} 36. Ne7+ {[%emt 00:00:01] [%clk 00:00:26]} Kg7
{[%emt 00:00:33] [%clk 00:00:48]} 37. Re1 {[%emt 00:00:15] [%clk 00:00:21]} Re5
{[%emt 00:00:13] [%clk 00:00:44]} 38. Rxe5 {[%emt 00:00:06] [%clk 00:00:25]}
dxe5 {[%emt 00:00:01] [%clk 00:00:53]} 39. Qc5 {[%emt 00:00:08] [%clk 00:00:27]}
Qxb3 {[%emt 00:00:27] [%clk 00:00:37]} 40. Qxe5+ {[%emt 00:00:04] [%clk
00:00:33]} f6 {[%emt 00:00:01] [%clk 00:00:46]} 41. Qc7 {[%emt 00:00:24] [%clk
00:00:19]} Qd1+ {[%emt 00:00:34] [%clk 00:00:22]} 42. Kh2 {[%emt 00:00:04] [%clk
00:00:24]} Qd7 {[%emt 00:00:09] [%clk 00:00:24]} 43. Qc5 {[%emt 00:00:03] [%clk
00:00:31]} Bf7 {[%emt 00:00:14] [%clk 00:00:19]} 44. Nc8 {[%emt 00:00:28] [%clk
00:00:13]} a5 {[%emt 00:00:18] [%clk 00:00:11]} 45. Nb6 {[%emt 00:00:10] [%clk
00:00:12]} Qf5 {[%emt 00:00:01] [%clk 00:00:20]} 46. Qd4 {[%emt 00:00:04] [%clk
00:00:18]} Qe5 {[%emt 00:00:06] [%clk 00:00:24]} 47. Qd2 {[%emt 00:00:13] [%clk
00:00:16]} Qb5 {[%emt 00:00:06] [%clk 00:00:27]} 48. Qd4 {[%emt 00:00:04] [%clk
00:00:22]} Qb4 {[%emt 00:00:09] [%clk 00:00:28]} 49. Qd8 {[%emt 00:00:17] [%clk
00:00:16]} a4 {[%emt 00:00:06] [%clk 00:00:32]} 50. Nd7 {[%emt 00:00:11] [%clk
00:00:15]} Qd6 {[%emt 00:00:03] [%clk 00:00:39]} 51. h5 {[%emt 00:00:07] [%clk
00:00:18]} gxh5 {[%emt 00:00:05] [%clk 00:00:44]} 0-1

[Site "Europe Echecs"]

[Event "Championnat d'Europe Rapide"]
[Date "2024.12.08"]
[White "Todorovic, Goran N"]
[Black "Cvitan, Ognjen"]
[WhiteElo "2256"]
[BlackElo "2413"]
[Round "10.30"]
[Result "1-0"]
[TimeControl "900+10"]

1. e4 {[%emt 00:00:02] [%clk 00:15:17]} c5 {[%emt 00:00:05] [%clk 00:15:16]} 2.
Nf3 {[%emt 00:00:02] [%clk 00:15:24]} d6 {[%emt 00:00:02] [%clk 00:15:25]} 3. d4
{[%emt 00:00:04] [%clk 00:15:31]} cxd4 {[%emt 00:00:03] [%clk 00:15:32]} 4. Nxd4
{[%emt 00:00:01] [%clk 00:15:39]} Nf6 {[%emt 00:00:03] [%clk 00:15:40]} 5. Nc3
{[%emt 00:00:02] [%clk 00:15:46]} a6 {[%emt 00:00:07] [%clk 00:15:43]} 6. Bg5
{[%emt 00:00:08] [%clk 00:15:48]} e6 {[%emt 00:00:03] [%clk 00:15:50]} 7. Qf3
{[%emt 00:00:06] [%clk 00:15:53]} h6 {[%emt 00:00:34] [%clk 00:15:26]} 8. Be3
{[%emt 00:00:06] [%clk 00:15:57]} e5 {[%emt 00:00:24] [%clk 00:15:12]} 9. Nb3
{[%emt 00:00:16] [%clk 00:15:51]} Be7 {[%emt 00:00:13] [%clk 00:15:09]} 10. h3
{[%emt 00:00:02] [%clk 00:15:59]} b5 {[%emt 00:00:46]} 11. O-O-O {[%emt
00:00:01] [%clk 00:15:55]} Nbd7 {[%emt 00:00:18] [%clk 00:14:39]} 12. Kb1 {[%emt
00:00:29] [%clk 00:15:36]} b4 {[%emt 00:00:36] [%clk 00:14:12]} 13. Nd5 {[%emt
00:00:05] [%clk 00:15:41]} Nxd5 {[%emt 00:00:02] [%clk 00:14:20]} 14. exd5
{[%emt 00:00:01] [%clk 00:15:50]} a5 {[%emt 00:00:10] [%clk 00:14:21]} 15. Qg3
{[%emt 00:02:10] [%clk 00:13:49]} a4 {[%emt 00:01:45] [%clk 00:12:47]} 16. Nd2
{[%emt 00:00:04] [%clk 00:13:54]} g6 {[%emt 00:01:26] [%clk 00:11:31]} 17. f4
{[%emt 00:00:26] [%clk 00:13:38]} Ra5 {[%emt 00:00:52] [%clk 00:10:49]} 18. Nc4
{[%emt 00:00:21] [%clk 00:13:27]} Ra8 {[%emt 00:00:27] [%clk 00:10:32]} 19. fxe5
{[%emt 00:00:14] [%clk 00:13:24]} dxe5 {[%emt 00:00:01] [%clk 00:10:41]} 20. d6
{[%emt 00:00:36] [%clk 00:12:57]} Bf6 {[%emt 00:00:03] [%clk 00:10:47]} 21. Bd3
{[%emt 00:00:17] [%clk 00:12:51]} Kf8 {[%emt 00:00:24] [%clk 00:10:33]} 22. Bxg6
{[%emt 00:03:26] [%clk 00:09:35]} fxg6 {[%emt 00:00:02] [%clk 00:10:42]} 23.
Qxg6 {[%emt 00:00:02] [%clk 00:09:43]} Qe8 {[%emt 00:00:58] [%clk 00:09:52]} 24.
Bxh6+ {[%emt 00:00:23] [%clk 00:09:31]} Rxh6 {[%clk 00:10:01]} 25. Qxh6+ {[%emt
00:00:01] [%clk 00:09:40]} Bg7 {[%emt 00:00:28] [%clk 00:09:43]} 26. Qh7 {[%emt
00:00:15] [%clk 00:09:35]} Nf6 {[%emt 00:00:03] [%clk 00:09:50]} 27. Rhf1 {[%emt
00:00:01] [%clk 00:09:44]} Qf7 {[%emt 00:00:08] [%clk 00:09:52]} 28. Nxe5 {[%emt
00:00:18] [%clk 00:09:36]} Nxh7 {[%emt 00:00:35] [%clk 00:09:27]} 29. Rxf7+
{[%emt 00:00:02] [%clk 00:09:44]} Kg8 {[%clk 00:09:36]} 30. d7 {[%emt 00:00:44]
[%clk 00:09:11]} Bxd7 {[%emt 00:00:02] [%clk 00:09:45]} 31. Rxg7+ {[%emt
00:00:03] [%clk 00:09:18]} 1-0

[Site "Europe Echecs"]

[Event "Championnat d'Europe Rapide"]
[Date "2024.12.08"]
[White "Kozul, Zdenko"]
[Black "Gatineau, Yovann"]
[WhiteElo "2519"]
[BlackElo "2363"]
[Round "10.31"]
[Result "1/2-1/2"]
[TimeControl "900+10"]

1. d4 {[%emt 00:00:04] [%clk 00:15:16]} d5 {[%emt 00:02:31] [%clk 00:12:50]} 2.
c4 {[%emt 00:00:04] [%clk 00:15:21]} e6 {[%emt 00:00:03] [%clk 00:12:57]} 3. Nf3
{[%emt 00:00:02] [%clk 00:15:29]} Nf6 {[%emt 00:00:02] [%clk 00:13:05]} 4. g3
{[%emt 00:00:03] [%clk 00:15:35]} Bb4+ {[%emt 00:00:02] [%clk 00:13:14]} 5. Bd2
{[%emt 00:00:02] [%clk 00:15:43]} Be7 {[%emt 00:00:02] [%clk 00:13:22]} 6. Bg2
{[%emt 00:00:01] [%clk 00:15:51]} c6 {[%emt 00:00:02] [%clk 00:13:31]} 7. Qc2
{[%emt 00:00:03] [%clk 00:15:58]} Nbd7 {[%emt 00:00:02] [%clk 00:13:39]} 8. O-O
{[%emt 00:00:02] [%clk 00:16:06]} O-O {[%emt 00:00:03] [%clk 00:13:46]} 9. Bf4
{[%emt 00:00:13] [%clk 00:16:03]} b6 {[%emt 00:00:02] [%clk 00:13:54]} 10. h4
{[%emt 00:00:23] [%clk 00:15:50]} h6 {[%emt 00:00:21] [%clk 00:13:43]} 11. Nbd2
{[%emt 00:00:50] [%clk 00:15:10]} Nh5 {[%emt 00:00:20] [%clk 00:13:33]} 12. e3
{[%emt 00:00:10] [%clk 00:15:10]} Bb7 {[%emt 00:00:45] [%clk 00:12:58]} 13. cxd5
{[%emt 00:01:26] [%clk 00:13:54]} cxd5 {[%emt 00:00:57] [%clk 00:12:11]} 14. Bc7
{[%emt 00:00:23] [%clk 00:13:41]} Qe8 {[%emt 00:01:10] [%clk 00:11:11]} 15. Rfc1
{[%emt 00:00:02] [%clk 00:13:49]} Rc8 {[%emt 00:01:09] [%clk 00:10:13]} 16. Qb3
{[%emt 00:00:19] [%clk 00:13:39]} Nhf6 {[%emt 00:01:34] [%clk 00:08:49]} 17. Bf1
{[%emt 00:00:21] [%clk 00:13:28]} Ne4 {[%emt 00:02:23] [%clk 00:06:37]} 18. Nxe4
{[%emt 00:00:16] [%clk 00:13:21]} dxe4 {[%emt 00:00:02] [%clk 00:06:45]} 19. Nd2
{[%emt 00:00:01] [%clk 00:13:29]} Bd5 {[%emt 00:01:37] [%clk 00:05:19]} 20. Qd1
{[%emt 00:00:48] [%clk 00:12:51]} Nc5 {[%emt 00:00:40] [%clk 00:04:50]} 21. dxc5
{[%emt 00:00:45] [%clk 00:12:15]} Rxc7 {[%emt 00:00:02] [%clk 00:04:58]} 22.
cxb6 {[%emt 00:00:02] [%clk 00:12:24]} Rxc1 {[%emt 00:00:02] [%clk 00:05:06]}
23. Rxc1 {[%emt 00:00:09] [%clk 00:12:25]} axb6 {[%emt 00:00:02] [%clk
00:05:14]} 24. Bc4 {[%emt 00:00:02] [%clk 00:12:32]} Bb7 {[%emt 00:01:30] [%clk
00:03:54]} 25. a4 {[%emt 00:01:30] [%clk 00:11:12]} Qa8 {[%emt 00:00:34] [%clk
00:03:30]} 26. Bb5 {[%emt 00:01:24] [%clk 00:09:58]} Rd8 {[%emt 00:00:24] [%clk
00:03:17]} 27. Qc2 {[%emt 00:00:02] [%clk 00:10:06]} Bf6 {[%emt 00:00:25] [%clk
00:03:02]} 28. Nc4 {[%emt 00:00:08] [%clk 00:10:08]} Qa7 {[%emt 00:00:21] [%clk
00:02:51]} 29. h5 {[%emt 00:00:24] [%clk 00:09:54]} Bd5 {[%emt 00:00:32] [%clk
00:02:29]} 30. b3 {[%emt 00:00:04] [%clk 00:10:00]} Qc7 {[%emt 00:00:14] [%clk
00:02:25]} 31. Qe2 {[%emt 00:00:10] [%clk 00:09:59]} Qc5 {[%emt 00:00:10] [%clk
00:02:26]} 32. Rd1 {[%emt 00:00:26] [%clk 00:09:43]} Rb8 {[%emt 00:00:41] [%clk
00:01:56]} 33. Rc1 {[%emt 00:01:48] [%clk 00:08:05]} Qb4 {[%emt 00:00:24] [%clk
00:01:42]} 34. Qd1 {[%emt 00:00:11] [%clk 00:08:05]} Rd8 {[%emt 00:00:26] [%clk
00:01:26]} 35. Qc2 {[%emt 00:00:17] [%clk 00:07:58]} Qc5 {[%emt 00:00:21] [%clk
00:01:15]} 36. Nd2 {[%emt 00:00:34] [%clk 00:07:34]} Qb4 {[%emt 00:00:23] [%clk
00:01:03]} 37. Bc4 {[%emt 00:00:12] [%clk 00:07:31]} Bxc4 {[%emt 00:00:42] [%clk
00:00:31]} 38. Nxc4 {[%emt 00:00:01] [%clk 00:07:40]} Rd3 {[%emt 00:00:04] [%clk
00:00:38]} 39. Rb1 {[%emt 00:00:09] [%clk 00:07:41]} Qc5 {[%emt 00:00:25] [%clk
00:00:24]} 40. Rd1 {[%emt 00:00:14] [%clk 00:07:36]} Rc3 {[%emt 00:00:18] [%clk
00:00:15]} 41. Rd8+ {[%emt 00:01:40] [%clk 00:06:07]} Bxd8 {[%emt 00:00:02]
[%clk 00:00:24]} 42. Qxc3 {[%clk 00:06:16]} Qxh5 {[%emt 00:00:16] [%clk
00:00:18]} 43. Qd4 {[%emt 00:01:24] [%clk 00:05:02]} Qd5 {[%emt 00:00:01] [%clk
00:00:27]} 44. b4 {[%clk 00:05:11]} Bc7 {[%emt 00:00:24] [%clk 00:00:12]} 45. a5
{[%emt 00:00:02] [%clk 00:05:19]} bxa5 {[%emt 00:00:01] [%clk 00:00:22]} 46.
bxa5 {[%clk 00:05:28]} Qb5 {[%emt 00:00:19] [%clk 00:00:13]} 47. Qxe4 {[%emt
00:00:02] [%clk 00:05:36]} g6 {[%emt 00:00:10] [%clk 00:00:13]} 48. Qd4 {[%emt
00:04:17] [%clk 00:01:28]} Bxa5 {[%emt 00:00:06] [%clk 00:00:17]} 49. Ne5 {[%emt
00:00:02] [%clk 00:01:36]} h5 {[%emt 00:00:14] [%clk 00:00:12]} 50. Nd7 {[%emt
00:00:36] [%clk 00:01:10]} Bd8 {[%emt 00:00:03] [%clk 00:00:20]} 51. Qd6 {[%emt
00:00:31] [%clk 00:00:49]} Qb1+ {[%emt 00:00:18] [%clk 00:00:12]} 52. Kh2 {[%emt
00:00:02] [%clk 00:00:57]} Qf5 {[%emt 00:00:03] [%clk 00:00:19]} 53. Qf8+ {[%emt
00:00:45] [%clk 00:00:22]} Kh7 {[%clk 00:00:28]} 54. Qxd8 {[%emt 00:00:01] [%clk
00:00:30]} Qxf2+ {[%emt 00:00:01] [%clk 00:00:37]} 55. Kh3 {[%clk 00:00:40]}
Qf5+ {[%emt 00:00:25] [%clk 00:00:21]} 56. Kg2 {[%emt 00:00:04] [%clk 00:00:45]}
Qc2+ {[%emt 00:00:07] [%clk 00:00:25]} 57. Kf1 {[%emt 00:00:11] [%clk 00:00:44]}
Qd1+ {[%emt 00:00:03] [%clk 00:00:32]} 58. Kf2 {[%emt 00:00:01] [%clk 00:00:53]}
Qc2+ {[%emt 00:00:02] [%clk 00:00:41]} 59. Kf1 {[%emt 00:00:01] [%clk 00:01:02]}
Qd1+ {[%emt 00:00:02] [%clk 00:00:50]} 60. Kf2 {[%clk 00:01:11]} Qc2+ {[%emt
00:00:02] [%clk 00:00:58]} 61. Kf1 {[%emt 00:00:01] [%clk 00:01:19]} 1/2-1/2

[Site "Europe Echecs"]

[Event "Championnat d'Europe Rapide"]
[Date "2024.12.08"]
[White "Danov, Lyubomir"]
[Black "Alonso Rosell, Alvar"]
[WhiteElo "2297"]
[BlackElo "2532"]
[Round "10.32"]
[Result "0-1"]
[TimeControl "900+10"]

1. e4 {[%emt 00:00:09] [%clk 00:15:10]} c6 {[%emt 00:01:21] [%clk 00:13:59]} 2.
d4 {[%emt 00:00:03] [%clk 00:15:17]} d5 {[%emt 00:00:02] [%clk 00:14:08]} 3.
exd5 {[%emt 00:00:02] [%clk 00:15:26]} cxd5 {[%emt 00:00:01] [%clk 00:14:16]} 4.
Bd3 {[%emt 00:00:02] [%clk 00:15:34]} Nc6 {[%emt 00:00:06] [%clk 00:14:20]} 5.
c3 {[%emt 00:00:01] [%clk 00:15:42]} e6 {[%emt 00:00:20] [%clk 00:14:10]} 6. Bf4
{[%emt 00:00:11] [%clk 00:15:41]} Nge7 {[%emt 00:00:03] [%clk 00:14:17]} 7. Nf3
{[%emt 00:00:05] [%clk 00:15:46]} f6 {[%emt 00:00:07] [%clk 00:14:21]} 8. O-O
{[%emt 00:00:13] [%clk 00:15:42]} g5 {[%emt 00:00:29] [%clk 00:14:02]} 9. Bg3
{[%emt 00:00:04] [%clk 00:15:48]} Nf5 {[%emt 00:00:30] [%clk 00:13:43]} 10. Re1
{[%emt 00:00:19] [%clk 00:15:39]} Kf7 {[%emt 00:00:08] [%clk 00:13:46]} 11. Nbd2
{[%emt 00:03:03] [%clk 00:12:46]} h5 {[%emt 00:01:33] [%clk 00:12:23]} 12. h4
{[%emt 00:00:34] [%clk 00:12:22]} g4 {[%emt 00:00:33] [%clk 00:12:00]} 13. Nh2
{[%emt 00:00:10] [%clk 00:12:22]} Nxg3 {[%emt 00:02:02] [%clk 00:10:08]} 14.
fxg3 {[%emt 00:00:02] [%clk 00:12:30]} Bd6 {[%emt 00:00:04] [%clk 00:10:15]} 15.
Nhf1 {[%emt 00:00:07] [%clk 00:12:32]} f5 {[%emt 00:00:12] [%clk 00:10:13]} 16.
Qe2 {[%emt 00:00:48] [%clk 00:11:54]} Kg7 {[%emt 00:00:23] [%clk 00:10:01]} 17.
Qf2 {[%emt 00:01:19] [%clk 00:10:46]} Rf8 {[%emt 00:00:04] [%clk 00:10:06]} 18.
Re2 {[%emt 00:00:36] [%clk 00:10:19]} Bd7 {[%emt 00:01:48] [%clk 00:08:28]} 19.
Rae1 {[%emt 00:00:04] [%clk 00:10:24]} f4 {[%emt 00:00:14] [%clk 00:08:25]} 20.
Rxe6 {[%emt 00:02:25] [%clk 00:08:09]} Bxe6 {[%emt 00:00:06] [%clk 00:08:29]}
21. Rxe6 {[%emt 00:00:01] [%clk 00:08:18]} Rf6 {[%emt 00:00:10] [%clk 00:08:29]}
22. Re1 {[%emt 00:00:25] [%clk 00:08:03]} fxg3 {[%emt 00:01:46] [%clk 00:06:53]}
23. Qe3 {[%emt 00:00:02] [%clk 00:08:10]} Bf4 {[%emt 00:00:04] [%clk 00:06:59]}
24. Qe2 {[%emt 00:00:10] [%clk 00:08:10]} Rf7 {[%emt 00:01:53] [%clk 00:05:16]}
25. Qe6 {[%emt 00:00:49] [%clk 00:07:30]} Qxh4 {[%emt 00:00:30] [%clk 00:04:56]}
26. Qg6+ {[%emt 00:00:37] [%clk 00:07:03]} Kf8 {[%clk 00:05:05]} 27. Nb3 {[%emt
00:00:22] [%clk 00:06:51]} Re8 {[%emt 00:03:14] [%clk 00:02:01]} 28. Rxe8+
{[%emt 00:01:46] [%clk 00:05:15]} Kxe8 {[%emt 00:00:02] [%clk 00:02:10]} 29.
Qe6+ {[%emt 00:03:13] [%clk 00:02:11]} Kf8 {[%emt 00:00:02] [%clk 00:02:19]} 30.
Bg6 {[%emt 00:00:36] [%clk 00:01:45]} Nd8 {[%emt 00:00:04] [%clk 00:02:25]} 31.
Qe2 {[%emt 00:00:55] [%clk 00:00:59]} Re7 {[%emt 00:00:04] [%clk 00:02:32]} 32.
Qd3 {[%emt 00:00:24] [%clk 00:00:45]} Qh2+ {[%emt 00:00:19] [%clk 00:02:23]} 33.
Nxh2 {[%emt 00:00:11] [%clk 00:00:44]} gxh2+ {[%emt 00:00:02] [%clk 00:02:31]}
0-1

[Site "Europe Echecs"]